[Event "*** SCC Grand Prix: Titled Tuesday Blitz"]
[Site "Chess.com"]
[Date "2020.07.14"]
[Round "6"]
[White "DonBroca"]
[Black "MashaFromRussia"]
[Result "0-1"]
[WhiteElo "2125"]
[BlackElo "2422"]
[TimeControl "180+1"]
[EndTime "11:04:41 PDT"]
[Termination "MashaFromRussia won by resignation"]

1. c4 {[%clk 0:02:45.5]} 1... e5 {[%clk 0:02:57.8]} 2. Nc3 {[%clk 0:02:45.1]}
2... d6 {[%clk 0:02:57.5]} 3. e3 {[%clk 0:02:45.6]} 3... f5 {[%clk 0:02:57.2]}
4. d4 {[%clk 0:02:45]} 4... e4 {[%clk 0:02:57.1]} 5. Nge2 {[%clk 0:02:45.1]}
5... Nf6 {[%clk 0:02:57.3]} 6. g3 {[%clk 0:02:45]} 6... g6 {[%clk 0:02:57.6]} 7.
Bg2 {[%clk 0:02:45.4]} 7... Bg7 {[%clk 0:02:58.1]} 8. O-O {[%clk 0:02:45.9]}
8... O-O {[%clk 0:02:58.6]} 9. b3 {[%clk 0:02:46.1]} 9... c6 {[%clk 0:02:58.6]}
10. Bb2 {[%clk 0:02:46.4]} 10... Be6 {[%clk 0:02:58.7]} 11. Qc2 {[%clk
0:02:34.8]} 11... Nbd7 {[%clk 0:02:57.8]} 12. Rfd1 {[%clk 0:02:34.6]} 12... Qe7
{[%clk 0:02:52.9]} 13. Rd2 {[%clk 0:02:27.2]} 13... d5 {[%clk 0:02:47.8]} 14.
Rad1 {[%clk 0:02:23.6]} 14... g5 {[%clk 0:02:45.3]} 15. Na4 {[%clk 0:02:05.2]}
15... Rac8 {[%clk 0:02:40.1]} 16. Nc5 {[%clk 0:02:00.3]} 16... b6 {[%clk
0:02:25.9]} 17. Nxd7 {[%clk 0:01:56.7]} 17... Bxd7 {[%clk 0:02:21.1]} 18. c5
{[%clk 0:01:48.2]} 18... b5 {[%clk 0:02:17.1]} 19. a4 {[%clk 0:01:45.1]} 19...
a6 {[%clk 0:02:17.2]} 20. axb5 {[%clk 0:01:41.9]} 20... axb5 {[%clk 0:02:18.1]}
21. f4 {[%clk 0:01:33.6]} 21... exf3 {[%clk 0:02:14.9]} 22. Bxf3 {[%clk
0:01:32.7]} 22... Qxe3+ {[%clk 0:02:14.9]} 23. Kg2 {[%clk 0:01:31.2]} 23... Ne4
{[%clk 0:02:08.4]} 24. Rd3 {[%clk 0:00:46.8]} 24... Qf2+ {[%clk 0:02:07.4]} 25.
Kh1 {[%clk 0:00:46.9]} 25... f4 {[%clk 0:02:05.4]} 26. Bg2 {[%clk 0:00:36.4]}
26... f3 {[%clk 0:02:04.9]} 27. Bxf3 {[%clk 0:00:28.6]} 27... Rxf3 {[%clk
0:02:04.3]} 0-1

[Event "*** SCC Grand Prix: Titled Tuesday Blitz"]
[Site "Chess.com"]
[Date "2020.07.14"]
[Round "6"]
[White "quesfr"]
[Black "Unknown_IM"]
[Result "0-1"]
[WhiteElo "2211"]
[BlackElo "2381"]
[TimeControl "180+1"]
[EndTime "11:04:51 PDT"]
[Termination "Unknown_IM won by resignation"]

1. e4 {[%clk 0:03:00.9]} 1... e5 {[%clk 0:02:58.3]} 2. Nf3 {[%clk 0:03:00.6]}
2... Nc6 {[%clk 0:02:58.8]} 3. Bb5 {[%clk 0:03:00.8]} 3... a6 {[%clk 0:02:59.3]}
4. Ba4 {[%clk 0:03:00.5]} 4... Nf6 {[%clk 0:02:59]} 5. O-O {[%clk 0:03:00.2]}
5... Be7 {[%clk 0:02:58.6]} 6. d3 {[%clk 0:03:00.1]} 6... b5 {[%clk 0:02:56.1]}
7. Bb3 {[%clk 0:02:59.1]} 7... d6 {[%clk 0:02:56.6]} 8. Bd2 {[%clk 0:02:59.2]}
8... O-O {[%clk 0:02:56.5]} 9. Re1 {[%clk 0:02:51.8]} 9... Bg4 {[%clk
0:02:55.5]} 10. h3 {[%clk 0:02:50.8]} 10... Bxf3 {[%clk 0:02:54.8]} 11. Qxf3
{[%clk 0:02:48.2]} 11... Nd4 {[%clk 0:02:54.8]} 12. Qd1 {[%clk 0:02:38.7]} 12...
Nxb3 {[%clk 0:02:55.2]} 13. axb3 {[%clk 0:02:38.9]} 13... c5 {[%clk 0:02:53.6]}
14. Bg5 {[%clk 0:02:32.8]} 14... Nd5 {[%clk 0:02:50.9]} 15. Bxe7 {[%clk
0:02:29.1]} 15... Nxe7 {[%clk 0:02:51.8]} 16. Nc3 {[%clk 0:02:25.9]} 16... b4
{[%clk 0:02:51]} 17. Ne2 {[%clk 0:02:23.2]} 17... f5 {[%clk 0:02:51.4]} 18. exf5
{[%clk 0:02:20]} 18... Nxf5 {[%clk 0:02:52.3]} 19. Rf1 {[%clk 0:02:12.2]} 19...
Qg5 {[%clk 0:02:48.1]} 20. Qc1 {[%clk 0:02:06.1]} 20... Qg6 {[%clk 0:02:46.7]}
21. Qd2 {[%clk 0:01:56.7]} 21... Rf6 {[%clk 0:02:43.6]} 22. f4 {[%clk
0:01:56.4]} 22... Nh4 {[%clk 0:02:40]} 23. Rf2 {[%clk 0:01:44.6]} 23... Raf8
{[%clk 0:02:38.7]} 24. Rxa6 {[%clk 0:01:34.9]} 24... exf4 {[%clk 0:02:35.7]} 25.
Nxf4 {[%clk 0:00:50.6]} 25... Rxf4 {[%clk 0:02:32.1]} 26. Rxf4 {[%clk
0:00:48.9]} 26... Rxf4 {[%clk 0:02:31.2]} 27. Ra8+ {[%clk 0:00:48.7]} 27... Rf8
{[%clk 0:02:31.7]} 28. Rxf8+ {[%clk 0:00:47.8]} 28... Kxf8 {[%clk 0:02:32.6]}
29. Qf4+ {[%clk 0:00:47.4]} 29... Qf6 {[%clk 0:02:32.8]} 30. Qe4 {[%clk
0:00:24.4]} 30... Qd4+ {[%clk 0:02:31.6]} 31. Qxd4 {[%clk 0:00:23.7]} 31... cxd4
{[%clk 0:02:32.5]} 32. Kf2 {[%clk 0:00:19.9]} 32... g5 {[%clk 0:02:31.3]} 33. g3
{[%clk 0:00:19]} 33... Nf5 {[%clk 0:02:30.6]} 34. Kf3 {[%clk 0:00:19.3]} 34...
Ne3 {[%clk 0:02:31.2]} 35. Ke4 {[%clk 0:00:17.9]} 35... Nxc2 {[%clk 0:02:31.2]}
36. Kd5 {[%clk 0:00:18.1]} 36... Ke7 {[%clk 0:02:30.9]} 37. g4 {[%clk
0:00:16.1]} 37... h6 {[%clk 0:02:30.5]} 38. Kc4 {[%clk 0:00:15.8]} 38... Ke6
{[%clk 0:02:30.4]} 39. Kb5 {[%clk 0:00:15.8]} 39... Kd5 {[%clk 0:02:30.8]} 0-1

[Event "*** SCC Grand Prix: Titled Tuesday Blitz"]
[Site "Chess.com"]
[Date "2020.07.14"]
[Round "6"]
[White "orrbaverlekszarnyon"]
[Black "Evachess2006"]
[Result "1-0"]
[WhiteElo "2154"]
[BlackElo "1613"]
[TimeControl "180+1"]
[EndTime "11:04:52 PDT"]
[Termination "orrbaverlekszarnyon won by resignation"]

1. e4 {[%clk 0:02:29.6]} 1... e5 {[%clk 0:02:59]} 2. Nf3 {[%clk 0:02:27]} 2...
Nc6 {[%clk 0:02:56.3]} 3. Bc4 {[%clk 0:02:26.1]} 3... Bc5 {[%clk 0:02:47.8]} 4.
b4 {[%clk 0:02:24.6]} 4... Bxb4 {[%clk 0:02:05.3]} 5. c3 {[%clk 0:02:22.5]} 5...
Be7 {[%clk 0:01:55.9]} 6. d4 {[%clk 0:02:20.7]} 6... exd4 {[%clk 0:01:21.2]} 7.
cxd4 {[%clk 0:02:16.4]} 7... d6 {[%clk 0:01:15.9]} 8. Qb3 {[%clk 0:02:10]} 8...
Na5 {[%clk 0:00:15.8]} 9. Bxf7+ {[%clk 0:02:07.4]} 9... Kf8 {[%clk 0:00:15.4]}
10. Qa4 {[%clk 0:02:07.3]} 10... Kxf7 {[%clk 0:00:12.6]} 11. Qxa5 {[%clk
0:02:07.2]} 11... Nf6 {[%clk 0:00:12.6]} 12. e5 {[%clk 0:02:03.2]} 12... Ng4
{[%clk 0:00:02.9]} 13. O-O {[%clk 0:02:01.7]} 13... dxe5 {[%clk 0:00:02.5]} 14.
dxe5 {[%clk 0:02:01.9]} 14... Re8 {[%clk 0:00:02.9]} 15. h3 {[%clk 0:01:58]}
15... Nh6 {[%clk 0:00:02.8]} 16. Bxh6 {[%clk 0:01:57.3]} 16... gxh6 {[%clk
0:00:03.3]} 17. Nc3 {[%clk 0:01:57]} 17... Bg5 {[%clk 0:00:03]} 18. Rad1 {[%clk
0:01:56.2]} 18... Qe7 {[%clk 0:00:02.3]} 19. Nd5 {[%clk 0:01:55]} 19... Qf8
{[%clk 0:00:01.9]} 20. Qxc7+ {[%clk 0:01:54.1]} 1-0

[Event "*** SCC Grand Prix: Titled Tuesday Blitz"]
[Site "Chess.com"]
[Date "2020.07.14"]
[Round "6"]
[White "WPWPWP-2015"]
[Black "barriochess"]
[Result "1-0"]
[WhiteElo "2430"]
[BlackElo "2291"]
[TimeControl "180+1"]
[EndTime "11:04:57 PDT"]
[Termination "WPWPWP-2015 won by resignation"]

1. e4 {[%clk 0:03:00.9]} 1... c5 {[%clk 0:02:59.6]} 2. Nc3 {[%clk 0:02:46.9]}
2... Nc6 {[%clk 0:02:59.4]} 3. Bb5 {[%clk 0:02:44.6]} 3... g6 {[%clk 0:02:58.8]}
4. Nge2 {[%clk 0:02:41.3]} 4... Bg7 {[%clk 0:02:57.9]} 5. O-O {[%clk 0:02:40.7]}
5... Nd4 {[%clk 0:02:57.6]} 6. Bc4 {[%clk 0:02:40]} 6... Nh6 {[%clk 0:02:53.8]}
7. f4 {[%clk 0:02:37.4]} 7... O-O {[%clk 0:02:52.3]} 8. d3 {[%clk 0:02:35.5]}
8... e6 {[%clk 0:02:51.4]} 9. e5 {[%clk 0:02:28.8]} 9... Nhf5 {[%clk 0:02:45.6]}
10. Ne4 {[%clk 0:02:27.2]} 10... Nxe2+ {[%clk 0:02:41.3]} 11. Qxe2 {[%clk
0:02:26.3]} 11... b6 {[%clk 0:02:42.2]} 12. g4 {[%clk 0:02:15.5]} 12... Nd4
{[%clk 0:02:37.5]} 13. Qd1 {[%clk 0:02:09.9]} 13... Bb7 {[%clk 0:02:36.2]} 14.
c3 {[%clk 0:02:06.3]} 14... Bxe4 {[%clk 0:02:26.5]} 15. dxe4 {[%clk 0:02:04.7]}
15... Nc6 {[%clk 0:02:25.9]} 16. g5 {[%clk 0:02:02.2]} 16... Qc7 {[%clk
0:02:21.3]} 17. Be3 {[%clk 0:01:58.4]} 17... Rad8 {[%clk 0:02:20.5]} 18. Qd6
{[%clk 0:01:56.9]} 18... Qxd6 {[%clk 0:02:18.2]} 19. exd6 {[%clk 0:01:57.8]}
19... f6 {[%clk 0:02:07.9]} 20. h4 {[%clk 0:01:53.5]} 20... fxg5 {[%clk
0:02:05.1]} 21. hxg5 {[%clk 0:01:53]} 21... Na5 {[%clk 0:02:03.4]} 22. Be2
{[%clk 0:01:40.7]} 22... Nb7 {[%clk 0:02:01.9]} 23. Rad1 {[%clk 0:01:37.2]}
23... Rf7 {[%clk 0:02:01.6]} 24. e5 {[%clk 0:01:34.9]} 24... Na5 {[%clk
0:01:58.7]} 25. b4 {[%clk 0:01:32.7]} 25... cxb4 {[%clk 0:01:58.2]} 26. cxb4
{[%clk 0:01:32.2]} 26... Nc6 {[%clk 0:01:57.8]} 27. a3 {[%clk 0:01:28.1]} 27...
Rb8 {[%clk 0:01:47.2]} 28. Bf3 {[%clk 0:01:23.3]} 28... Nd8 {[%clk 0:01:31.9]}
29. Be4 {[%clk 0:01:16.9]} 29... Rf8 {[%clk 0:01:25.5]} 30. Rc1 {[%clk
0:01:16.1]} 30... a5 {[%clk 0:01:16.8]} 31. Rc7 {[%clk 0:01:14]} 31... Rf7
{[%clk 0:01:16]} 32. Rfc1 {[%clk 0:01:11.9]} 32... Kf8 {[%clk 0:01:15]} 33. Rc8
{[%clk 0:01:09.2]} 1-0

[Event "*** SCC Grand Prix: Titled Tuesday Blitz"]
[Site "Chess.com"]
[Date "2020.07.14"]
[Round "6"]
[White "PauloCesarCosta_sad"]
[Black "Tactictic"]
[Result "0-1"]
[WhiteElo "2210"]
[BlackElo "2379"]
[TimeControl "180+1"]
[EndTime "11:04:57 PDT"]
[Termination "Tactictic won on time"]

1. Nf3 {[%clk 0:02:56.6]} 1... d5 {[%clk 0:02:59.3]} 2. d4 {[%clk 0:02:56.4]}
2... Nf6 {[%clk 0:02:59.5]} 3. c4 {[%clk 0:02:56.7]} 3... e6 {[%clk 0:02:59.5]}
4. Nc3 {[%clk 0:02:56.7]} 4... Be7 {[%clk 0:02:59.8]} 5. Bg5 {[%clk 0:02:55.8]}
5... h6 {[%clk 0:02:54.9]} 6. Bh4 {[%clk 0:02:55.3]} 6... O-O {[%clk 0:02:54.9]}
7. e3 {[%clk 0:02:55.5]} 7... b6 {[%clk 0:02:55.5]} 8. cxd5 {[%clk 0:02:54.8]}
8... Nxd5 {[%clk 0:02:55]} 9. Bxe7 {[%clk 0:02:54]} 9... Nxe7 {[%clk 0:02:55.9]}
10. Rc1 {[%clk 0:02:53]} 10... Bb7 {[%clk 0:02:54.5]} 11. Be2 {[%clk 0:02:52.7]}
11... Na6 {[%clk 0:02:49.1]} 12. O-O {[%clk 0:02:52.2]} 12... c5 {[%clk
0:02:48.9]} 13. Bxa6 {[%clk 0:02:50.5]} 13... Bxa6 {[%clk 0:02:49]} 14. Re1
{[%clk 0:02:51.2]} 14... cxd4 {[%clk 0:02:45.7]} 15. Qxd4 {[%clk 0:02:50.2]}
15... Qxd4 {[%clk 0:02:33.3]} 16. Nxd4 {[%clk 0:02:50.1]} 16... Rac8 {[%clk
0:02:31.1]} 17. Ndb5 {[%clk 0:02:26.4]} 17... Bxb5 {[%clk 0:02:26]} 18. Nxb5
{[%clk 0:02:26.3]} 18... a6 {[%clk 0:02:25.6]} 19. Nd6 {[%clk 0:02:19.3]} 19...
Rc6 {[%clk 0:02:17.8]} 20. Rxc6 {[%clk 0:02:07.1]} 20... Nxc6 {[%clk 0:02:18.7]}
21. g3 {[%clk 0:01:56.7]} 21... Rd8 {[%clk 0:02:17.1]} 22. Ne4 {[%clk
0:01:52.1]} 22... f5 {[%clk 0:02:16.6]} 23. Nc3 {[%clk 0:01:45.7]} 23... Rd2
{[%clk 0:02:15.6]} 24. Rb1 {[%clk 0:01:38.8]} 24... Ne5 {[%clk 0:02:15]} 25. b3
{[%clk 0:01:26.4]} 25... Rc2 {[%clk 0:02:13.6]} 26. Na4 {[%clk 0:01:17.2]} 26...
b5 {[%clk 0:02:12.2]} 27. Nb2 {[%clk 0:01:06.4]} 27... Nf3+ {[%clk 0:02:10.2]}
28. Kg2 {[%clk 0:01:03.8]} 28... Nd2 {[%clk 0:02:10.4]} 0-1

[Event "*** SCC Grand Prix: Titled Tuesday Blitz"]
[Site "Chess.com"]
[Date "2020.07.14"]
[Round "6"]
[White "nocnypako"]
[Black "dennisodessa"]
[Result "1-0"]
[WhiteElo "2597"]
[BlackElo "2446"]
[TimeControl "180+1"]
[EndTime "11:04:59 PDT"]
[Termination "nocnypako won on time"]

1. d4 {[%clk 0:03:00.9]} 1... Nf6 {[%clk 0:02:58.8]} 2. c4 {[%clk 0:02:59.6]}
2... e6 {[%clk 0:02:59.1]} 3. Nc3 {[%clk 0:03:00]} 3... Bb4 {[%clk 0:02:59.7]}
4. e3 {[%clk 0:03:00.1]} 4... b6 {[%clk 0:03:00.1]} 5. Ne2 {[%clk 0:03:00.7]}
5... Bb7 {[%clk 0:03:00.5]} 6. a3 {[%clk 0:03:01.3]} 6... Be7 {[%clk 0:03:00.6]}
7. d5 {[%clk 0:03:01.4]} 7... O-O {[%clk 0:02:59.3]} 8. Nf4 {[%clk 0:03:02]}
8... a5 {[%clk 0:02:52.7]} 9. Bd3 {[%clk 0:03:00.9]} 9... Na6 {[%clk 0:02:51.4]}
10. O-O {[%clk 0:03:00]} 10... Nc5 {[%clk 0:02:49.4]} 11. Bc2 {[%clk 0:03:00.2]}
11... e5 {[%clk 0:02:49.8]} 12. Nh5 {[%clk 0:02:59.1]} 12... d6 {[%clk
0:02:46.5]} 13. Rb1 {[%clk 0:02:57.9]} 13... Nxh5 {[%clk 0:02:37.5]} 14. Qxh5
{[%clk 0:02:58.8]} 14... g6 {[%clk 0:02:38.4]} 15. Qe2 {[%clk 0:02:58.1]} 15...
a4 {[%clk 0:02:36.9]} 16. e4 {[%clk 0:02:52.9]} 16... Bg5 {[%clk 0:02:28.8]} 17.
Be3 {[%clk 0:02:32.3]} 17... Bxe3 {[%clk 0:02:25.4]} 18. Qxe3 {[%clk 0:02:33.2]}
18... Qe7 {[%clk 0:01:38.7]} 19. Rfc1 {[%clk 0:02:29.5]} 19... f5 {[%clk
0:01:33.6]} 20. exf5 {[%clk 0:02:28.6]} 20... gxf5 {[%clk 0:01:34.5]} 21. Qe2
{[%clk 0:02:28.8]} 21... Kh8 {[%clk 0:01:33.4]} 22. Qd1 {[%clk 0:02:28.6]} 22...
Qd7 {[%clk 0:01:28.9]} 23. Nb5 {[%clk 0:02:21.6]} 23... Ba6 {[%clk 0:00:35.6]}
24. Bxa4 {[%clk 0:02:20.4]} 24... Nxa4 {[%clk 0:00:31]} 25. Qxa4 {[%clk
0:02:21.3]} 25... Bxb5 {[%clk 0:00:27.5]} 26. Qxb5 {[%clk 0:02:22.2]} 26... Qg7
{[%clk 0:00:28.2]} 27. Rc3 {[%clk 0:02:20.4]} 27... f4 {[%clk 0:00:21.5]} 28.
Qb3 {[%clk 0:02:17.2]} 28... Rg8 {[%clk 0:00:21]} 29. g3 {[%clk 0:02:17.4]}
29... Raf8 {[%clk 0:00:16.9]} 30. Qd1 {[%clk 0:02:16]} 1-0

[Event "*** SCC Grand Prix: Titled Tuesday Blitz"]
[Site "Chess.com"]
[Date "2020.07.14"]
[Round "6"]
[White "aa175"]
[Black "AlanZhang"]
[Result "1-0"]
[WhiteElo "2394"]
[BlackElo "2221"]
[TimeControl "180+1"]
[EndTime "11:05:00 PDT"]
[Termination "aa175 won by checkmate"]

1. d4 {[%clk 0:03:00.9]} 1... Nf6 {[%clk 0:02:59.4]} 2. Nf3 {[%clk 0:02:59.1]}
2... d5 {[%clk 0:02:58.5]} 3. Bf4 {[%clk 0:02:56.7]} 3... e6 {[%clk 0:02:55.6]}
4. e3 {[%clk 0:02:53.7]} 4... Be7 {[%clk 0:02:47.5]} 5. Bd3 {[%clk 0:02:50.9]}
5... O-O {[%clk 0:02:46.5]} 6. Nbd2 {[%clk 0:02:47]} 6... c5 {[%clk 0:02:44.9]}
7. c3 {[%clk 0:02:43.5]} 7... Nc6 {[%clk 0:02:43.4]} 8. Ne5 {[%clk 0:02:36.9]}
8... Qb6 {[%clk 0:02:05.4]} 9. Rb1 {[%clk 0:02:05.8]} 9... c4 {[%clk 0:01:50.4]}
10. Bc2 {[%clk 0:02:03.9]} 10... Nxe5 {[%clk 0:01:30.5]} 11. dxe5 {[%clk
0:02:04.8]} 11... Nd7 {[%clk 0:01:29.4]} 12. h4 {[%clk 0:02:03.2]} 12... Nc5
{[%clk 0:01:28.5]} 13. Bxh7+ {[%clk 0:02:00.1]} 13... Kxh7 {[%clk 0:01:24.9]}
14. Qh5+ {[%clk 0:02:01]} 14... Kg8 {[%clk 0:01:24.6]} 15. Nf3 {[%clk
0:02:01.9]} 15... f6 {[%clk 0:00:46.1]} 16. Ng5 {[%clk 0:01:59.5]} 16... fxg5
{[%clk 0:00:12]} 17. hxg5 {[%clk 0:02:00.4]} 17... Nd3+ {[%clk 0:00:08.6]} 18.
Kf1 {[%clk 0:01:37.6]} 18... Rxf4 {[%clk 0:00:05]} 19. Qh8+ {[%clk 0:01:36.6]}
19... Kf7 {[%clk 0:00:05.1]} 20. g6+ {[%clk 0:01:37.5]} 20... Kxg6 {[%clk
0:00:05.1]} 21. Qh5# {[%clk 0:01:38.4]} 1-0

[Event "*** SCC Grand Prix: Titled Tuesday Blitz"]
[Site "Chess.com"]
[Date "2020.07.14"]
[Round "6"]
[White "2008king"]
[Black "Angel_Hranitel_37"]
[Result "0-1"]
[WhiteElo "2229"]
[BlackElo "2397"]
[TimeControl "180+1"]
[EndTime "11:05:00 PDT"]
[Termination "Angel_Hranitel_37 won by resignation"]

1. e4 {[%clk 0:03:00.9]} 1... c5 {[%clk 0:02:59.5]} 2. Nf3 {[%clk 0:02:56.7]}
2... e6 {[%clk 0:02:59.2]} 3. d4 {[%clk 0:02:56.1]} 3... cxd4 {[%clk 0:03:00.1]}
4. Nxd4 {[%clk 0:02:57]} 4... Nf6 {[%clk 0:02:59]} 5. Nc3 {[%clk 0:02:53]} 5...
Nc6 {[%clk 0:02:59.2]} 6. Be3 {[%clk 0:02:49.3]} 6... Bb4 {[%clk 0:02:58.7]} 7.
Bd3 {[%clk 0:02:46.5]} 7... d5 {[%clk 0:02:58.2]} 8. Nxc6 {[%clk 0:02:42.2]}
8... bxc6 {[%clk 0:02:57.8]} 9. exd5 {[%clk 0:02:39.8]} 9... cxd5 {[%clk
0:02:56]} 10. Bd2 {[%clk 0:02:38.2]} 10... Bd7 {[%clk 0:02:51]} 11. O-O {[%clk
0:02:35.3]} 11... O-O {[%clk 0:02:50.5]} 12. a3 {[%clk 0:02:17.6]} 12... Bd6
{[%clk 0:02:45.8]} 13. Qe2 {[%clk 0:02:12.7]} 13... Rb8 {[%clk 0:02:44]} 14. b4
{[%clk 0:02:09.7]} 14... Qc7 {[%clk 0:02:25]} 15. Nb5 {[%clk 0:02:04.4]} 15...
Bxb5 {[%clk 0:02:24.1]} 16. Bxb5 {[%clk 0:02:05]} 16... Bxh2+ {[%clk 0:02:13.5]}
17. Kh1 {[%clk 0:01:59.8]} 17... Bf4 {[%clk 0:02:10.3]} 18. Bxf4 {[%clk
0:01:50]} 18... Qxf4 {[%clk 0:02:11.2]} 19. g3 {[%clk 0:01:46.6]} 19... Qd4
{[%clk 0:01:31.8]} 20. Bd3 {[%clk 0:01:44.6]} 20... e5 {[%clk 0:01:28.4]} 21.
Rad1 {[%clk 0:01:30.6]} 21... e4 {[%clk 0:01:28.4]} 22. Ba6 {[%clk 0:01:28.9]}
22... Qe5 {[%clk 0:01:24.7]} 23. c4 {[%clk 0:01:25.9]} 23... d4 {[%clk
0:01:22.6]} 24. f4 {[%clk 0:01:11]} 24... Qe6 {[%clk 0:01:13.9]} 25. c5 {[%clk
0:00:55.8]} 25... d3 {[%clk 0:01:13.7]} 0-1

[Event "*** SCC Grand Prix: Titled Tuesday Blitz"]
[Site "Chess.com"]
[Date "2020.07.14"]
[Round "6"]
[White "mitrabhaa"]
[Black "Supernotar"]
[Result "1/2-1/2"]
[WhiteElo "2605"]
[BlackElo "2828"]
[TimeControl "180+1"]
[EndTime "11:05:05 PDT"]
[Termination "Game drawn by repetition"]

1. Nf3 {[%clk 0:02:31.6]} 1... c5 {[%clk 0:02:59.3]} 2. c4 {[%clk 0:02:31.1]}
2... Nc6 {[%clk 0:02:59.5]} 3. d4 {[%clk 0:02:31.2]} 3... cxd4 {[%clk
0:02:59.4]} 4. Nxd4 {[%clk 0:02:32.1]} 4... g6 {[%clk 0:03:00]} 5. g3 {[%clk
0:02:32.5]} 5... d6 {[%clk 0:02:57.4]} 6. Bg2 {[%clk 0:02:31.8]} 6... Bd7 {[%clk
0:02:57.6]} 7. O-O {[%clk 0:02:31.4]} 7... Bg7 {[%clk 0:02:57.5]} 8. Nc2 {[%clk
0:02:31.2]} 8... Nf6 {[%clk 0:02:57.2]} 9. Nc3 {[%clk 0:02:30]} 9... O-O {[%clk
0:02:57.4]} 10. b3 {[%clk 0:02:30.3]} 10... a6 {[%clk 0:02:56]} 11. Bb2 {[%clk
0:02:28.6]} 11... Qa5 {[%clk 0:02:55.7]} 12. Qd2 {[%clk 0:02:27.9]} 12... b5
{[%clk 0:02:49.1]} 13. cxb5 {[%clk 0:02:17.6]} 13... axb5 {[%clk 0:02:48.8]} 14.
a3 {[%clk 0:02:18.5]} 14... Rac8 {[%clk 0:02:40.3]} 15. Rfd1 {[%clk 0:02:14.1]}
15... Ne5 {[%clk 0:02:33.5]} 16. Nd5 {[%clk 0:02:11.7]} 16... Qd8 {[%clk
0:01:49.3]} 17. Ncb4 {[%clk 0:02:08.4]} 17... Nxd5 {[%clk 0:01:46.8]} 18. Nxd5
{[%clk 0:02:04]} 18... Be6 {[%clk 0:01:41.1]} 19. h3 {[%clk 0:02:01.1]} 19...
Re8 {[%clk 0:01:33.1]} 20. f4 {[%clk 0:01:58.7]} 20... Nd7 {[%clk 0:01:29.2]}
21. Bxg7 {[%clk 0:01:56]} 21... Kxg7 {[%clk 0:01:30.1]} 22. e4 {[%clk
0:01:55.7]} 22... Bxd5 {[%clk 0:01:23.4]} 23. Qxd5 {[%clk 0:01:55.4]} 23... Qb6+
{[%clk 0:01:15.2]} 24. Kh2 {[%clk 0:01:54.9]} 24... Nf6 {[%clk 0:00:58.9]} 25.
Qd3 {[%clk 0:01:54.7]} 25... Rc5 {[%clk 0:00:54.3]} 26. b4 {[%clk 0:01:50.8]}
26... Rc4 {[%clk 0:00:48.1]} 27. Rac1 {[%clk 0:01:41.5]} 27... Rec8 {[%clk
0:00:47.6]} 28. Rxc4 {[%clk 0:01:41.2]} 28... Rxc4 {[%clk 0:00:47.5]} 29. Qe2
{[%clk 0:01:41]} 29... Rc3 {[%clk 0:00:40.9]} 30. Rd3 {[%clk 0:01:40.5]} 30...
Rc1 {[%clk 0:00:38.6]} 31. Rd1 {[%clk 0:01:40]} 31... Rc3 {[%clk 0:00:38.7]} 32.
Rd3 {[%clk 0:01:39.5]} 32... Rc1 {[%clk 0:00:38.9]} 33. Rd1 {[%clk 0:01:38.8]}
33... Rc3 {[%clk 0:00:38.6]} 1/2-1/2

[Event "*** SCC Grand Prix: Titled Tuesday Blitz"]
[Site "Chess.com"]
[Date "2020.07.14"]
[Round "6"]
[White "FlamingPhoenix123"]
[Black "Harry_Rakkel"]
[Result "1-0"]
[WhiteElo "2445"]
[BlackElo "2561"]
[TimeControl "180+1"]
[EndTime "11:05:12 PDT"]
[Termination "FlamingPhoenix123 won by resignation"]

1. e4 {[%clk 0:03:00.9]} 1... c5 {[%clk 0:02:59.2]} 2. Nf3 {[%clk 0:03:00.9]}
2... d6 {[%clk 0:02:58.9]} 3. d4 {[%clk 0:03:01.4]} 3... cxd4 {[%clk 0:02:58.9]}
4. Nxd4 {[%clk 0:03:02.3]} 4... Nf6 {[%clk 0:02:59.2]} 5. Nc3 {[%clk 0:03:02.6]}
5... a6 {[%clk 0:02:59.2]} 6. Be3 {[%clk 0:03:02.9]} 6... e5 {[%clk 0:02:58.1]}
7. Nf3 {[%clk 0:03:03.1]} 7... Qc7 {[%clk 0:02:50]} 8. a4 {[%clk 0:03:00.5]}
8... Be7 {[%clk 0:02:43.5]} 9. a5 {[%clk 0:02:54.9]} 9... Be6 {[%clk 0:02:37]}
10. Be2 {[%clk 0:02:50.1]} 10... h6 {[%clk 0:02:33.1]} 11. O-O {[%clk
0:02:37.1]} 11... Nbd7 {[%clk 0:02:32.1]} 12. Nd5 {[%clk 0:02:18.3]} 12... Nxd5
{[%clk 0:02:19.1]} 13. exd5 {[%clk 0:02:19.2]} 13... Bf5 {[%clk 0:02:18.9]} 14.
c4 {[%clk 0:02:14.7]} 14... O-O {[%clk 0:02:16.2]} 15. b4 {[%clk 0:02:14.4]}
15... Bh7 {[%clk 0:02:14.7]} 16. Rc1 {[%clk 0:02:14.1]} 16... Rac8 {[%clk
0:02:04.2]} 17. Qb3 {[%clk 0:02:12.8]} 17... f5 {[%clk 0:01:51.7]} 18. c5 {[%clk
0:02:04]} 18... f4 {[%clk 0:01:50.7]} 19. cxd6 {[%clk 0:01:54.8]} 19... Qxd6
{[%clk 0:01:49.9]} 20. Bc5 {[%clk 0:01:54.7]} 20... Nxc5 {[%clk 0:01:28.2]} 21.
bxc5 {[%clk 0:01:52.9]} 21... Rxc5 {[%clk 0:01:27.7]} 22. Rxc5 {[%clk
0:01:53.8]} 22... Qxc5 {[%clk 0:01:27.6]} 23. d6+ {[%clk 0:01:54.1]} 23... Kh8
{[%clk 0:01:27.5]} 24. dxe7 {[%clk 0:01:54.4]} 24... Qxe7 {[%clk 0:01:27.3]} 25.
Bc4 {[%clk 0:01:54.4]} 25... e4 {[%clk 0:01:25]} 26. Nd4 {[%clk 0:01:53.7]}
26... e3 {[%clk 0:01:19]} 27. fxe3 {[%clk 0:01:39.1]} 27... fxe3 {[%clk
0:01:16.6]} 28. Rxf8+ {[%clk 0:01:40]} 28... Qxf8 {[%clk 0:01:16]} 29. Qxe3
{[%clk 0:01:38.3]} 29... Qd8 {[%clk 0:01:07.2]} 30. Bf7 {[%clk 0:01:28.7]} 30...
Bg8 {[%clk 0:00:59.7]} 31. Bxg8 {[%clk 0:01:20.1]} 31... Kxg8 {[%clk 0:00:59.3]}
32. Qe5 {[%clk 0:01:19]} 32... Kh8 {[%clk 0:00:55.3]} 33. Qxg7+ {[%clk
0:01:17.9]} 33... Kxg7 {[%clk 0:00:53.7]} 34. Ne6+ {[%clk 0:01:18.8]} 1-0